Cogmind - Beta 11 X5 @@@ ROGUE MODE // 2021.06.12 @ 22:42:38 Player: aoemica Result: Self-destructed Performance ------------- Evolutions (7) 3500 Regions Visited (24) 4800 Robots Destroyed (435) 2175 Value Destroyed (18450) 18450 Prototype IDs (54) 1080 Alien Tech Used (4) 800 Bonus (10785) 10785 TOTAL SCORE: 41590 Bonus ------- High Alert Combat Kills 1724 Follower Combat Kills 1810 Network Hubs Disabled 200 Met Imprinter 300 Met Zhirov 300 Met R17 at Cetus 500 Found Hidden Lab 3000 Used Core Reset Matrix 3000 Pursued by Intercept 500 Friendly Fire -549 Cogmind --------- Core Integrity 1129/1300 Matter 253/300 Energy 395/395 System Corruption 5% Temperature Cool (21) Movement Treading (160) Location -3/Research Parts ------- > --- POWER (3) -------- Light Antimatter Reactor Reinforced Antimatter Reactor > --- PROPULSION (6) --- Centrium Heavy Treads Centrium Heavy Treads > --- UTILITY (9) ------ Experimental Heat Sink Advanced Coolant Injector Huge Storage Unit Improved Particle Charger > --- WEAPON (4) ------- Enhanced Force Rifle Quantum Rifle Enhanced Nova Cannon Coil Gun > --- INVENTORY (25) --- Light Antimatter Reactor Medium Treads Biometal Medium Treads Experimental Heat Sink Advanced Coolant Injector Improved Energy Well (400) Experimental Energy Well (600) Advanced Armor Integrity Analyzer Precision Matter Filter Experimental Weapon Shielding EM Dispersion Field Antimissile System Improved Hacking Suite Advanced Component Analysis Suite Long-range Tractor Beam Transdimensional Reconstructor Hypervelocity EM Gauss Rifle Heavy Proton Cannon Heavy Proton Cannon Enhanced Nova Cannon Enhanced Nova Cannon Warp Cannon Fusion Bomb Launcher CR-A16's Behemoth Slayer Peak State ------------ > --- POWER ------------ Particle Reactor Particle Reactor Graviton Reactor > --- PROPULSION ------- Centrium Heavy Treads Centrium Heavy Treads Centrium Heavy Treads > --- UTILITY ---------- Experimental Heat Sink Experimental Heat Sink Huge Storage Unit Medium Regenerative Plating Medium Regenerative Plating Antimissile System Experimental Hacking Suite Quantum Router Improved Component Analysis Suite > --- WEAPON ----------- Enhanced Force Rifle Enhanced Force Rifle Enhanced Nova Cannon CR-A16's Behemoth Slayer > --- INVENTORY -------- Light Neutrino Core Experimental Heat Sink Advanced Coolant Injector Advanced Coolant Injector Improved Energy Well Experimental Energy Well Advanced Terrain Scanner Advanced Armor Integrity Analyzer Precision Matter Filter Improved Particle Charger Experimental Weapon Shielding Experimental Weapon Shielding EM Dispersion Field Improved Hacking Suite System Restoration Module Long-range Tractor Beam Transdimensional Reconstructor Hypervelocity EM Gauss Rifle Enhanced Force Rifle Heavy Proton Cannon Heavy Proton Cannon Enhanced Nova Cannon Enhanced Nova Cannon Warp Cannon Fusion Bomb Launcher [Rating: 190] Favorites ----------- Power F-cell Engine Engine F-cell Engine Power Core Light Neutrino Core Reactor Fusion Reactor Propulsion Advanced Treads Treads Advanced Treads Leg Aluminum Leg Wheel Compact Wheel Utility High-capacity Storage Unit Device Cooling System Storage High-capacity Storage Unit Processor Experimental Targeting Computer Hackware Quantum Router Protection Improved Heavy Armor Plating Weapon Plasma Cannon Energy Gun Enhanced Force Rifle Energy Cannon Plasma Cannon Ballistic Gun Railgun Ballistic Cannon Gauss Cannon Launcher Missile Launcher Piercing Weapon CR-A16's Pointy Stick Special Melee Weapon Datajack Build | -11 -10 -10 -9 -9 -8 -7 -7 -7 -7 -6 -6 -6 -6 -6 -6 -5 -5 -5 -5 -4 -4 -4 -4 -3 ------- Run | Scr Mat Min Mat Sto Mat Fac Low Low Zio Pro Fac Ext Cet Arc Hub Fac Upp Upp Zhi Pro Fac Arm Lab Res Slots Evolved 14 | . . . 2 . 2 2 . . . . 2 . . . . 2 . . . . 2 . . 2 Power 1 | . . . . . . . . . . . . . . . . 1 . . . . . . . . Propulsion 4 | . . . 1 . . 1 . . . . 1 . . . . . . . . . . . . 1 Utility 7 | . . . . . 2 1 . . . . 1 . . . . 1 . . . . 1 . . 1 Weapon 2 | . . . 1 . . . . . . . . . . . . . . . . . 1 . . . Parts Attached 429 | . 16 7 24 9 19 24 9 9 4 5 17 24 7 10 17 33 12 28 13 8 22 41 25 46 Power 35 | . 4 1 2 1 2 1 . . . . 1 . . . . 2 2 2 1 . 1 7 2 6 Engine 15 | . 4 1 2 1 2 1 . . . . 1 . . . . . 1 2 . . . . . . Core 1 | . . . . . . . . . . . . . . . . . . . . . . . . 1 Reactor 19 | . . . . . . . . . . . . . . . . 2 1 . 1 . 1 7 2 5 Propulsion 50 | . 7 1 11 . . 5 . 2 . 2 1 6 2 1 1 2 1 1 . . 3 2 1 1 Treads 48 | . 7 . 10 . . 5 . 2 . 2 1 6 2 1 1 2 1 1 . . 3 2 1 1 Leg . | . . . . . . . . . . . . . . . . . . . . . . . . . Wheel 2 | . . 1 1 . . . . . . . . . . . . . . . . . . . . . Hover . | . . . . . . . . . . . . . . . . . . . . . . . . . Flight . | . . . . . . . . . . . . . . . . . . . . . . . . . Utility 223 | . 3 1 4 2 8 17 3 2 4 . 9 17 4 7 15 19 3 10 9 4 15 23 15 29 Device 165 | . 2 1 3 1 5 11 2 2 2 . 4 17 3 7 13 12 2 7 6 4 13 20 5 23 Storage 9 | . 1 . 1 . 1 1 . . . . . . 1 . . 1 . . . . . . 2 1 Processor 5 | . . . . 1 . 1 . . . . 2 . . . . 1 . . . . . . . . Hackware 4 | . . . . . . . . . . . . . . . . . . . . . 1 . 3 . Protection 40 | . . . . . 2 4 1 . 2 . 3 . . . 2 5 1 3 3 . 1 3 5 5 Artifact . | . . . . . . . . . . . . . . . . . . . . . . . . . Weapon 121 | . 2 4 7 6 9 1 6 5 . 3 6 1 1 2 1 10 6 15 3 4 3 9 7 10 Energy Gun 12 | . . . . . . . . . . . . . . . . . . . . . . 4 6 2 Energy Cannon 37 | . 1 2 2 3 4 . 3 3 . 2 1 . 1 1 . 3 1 3 . 1 . 2 1 3 Ballistic Gun 5 | . . . . . . . . . . . . . . . . . . . . . 2 2 . 1 Ballistic Cannon 33 | . 1 . 3 1 3 1 1 . . . 3 1 . . 1 2 3 8 1 2 1 1 . . Launcher 22 | . . 2 2 2 1 . 2 2 . 1 1 . . . . 2 1 2 1 1 . . . 2 Special Weapon . | . . . . . . . . . . . . . . . . . . . . . . . . . Impact Weapon . | . . . . . . . . . . . . . . . . . . . . . . . . . Slashing Weapon . | . . . . . . . . . . . . . . . . . . . . . . . . . Piercing Weapon 11 | . . . . . . . . . . . 1 . . 1 . 3 1 2 1 . . . . 2 Special Melee Weapon 1 | . . . . . 1 . . . . . . . . . . . . . . . . . . . Unidentified Prototypes 30 | . . . . 1 . . . . 1 . 1 . 1 1 3 1 . . 5 . . 3 12 1 Corrupted Parts 2 | . . . . . . . . . . . . . 1 1 . . . . . . . . . . System Corruption 4 | . . . . . . . . . . . . . 2 2 . . . . . . . . . . Parts Lost 35 | . . 1 1 1 1 1 . 2 . 1 . 1 . . . 1 1 3 . 1 5 6 1 8 Power 6 | . . . . . . . . . . . . . . . . . . 2 . . 1 1 . 2 Propulsion 6 | . . . . . . . . 2 . . . 1 . . . . . . . . 2 . . 1 Utility 21 | . . 1 1 1 1 1 . . . 1 . . . . . 1 1 1 . 1 2 4 1 4 Weapon 2 | . . . . . . . . . . . . . . . . . . . . . . 1 . 1 Highest Loss Streak 5 | . . 1 1 1 1 1 . 2 . 1 . 1 . . . 1 1 1 . 1 1 2 1 5 Average Slot Usage (%) 91 | . 96 100 99 99 99 99 99 99 100 99 93 91 85 80 80 81 82 81 84 87 88 85 85 85 Engine 6 | . 14 14 11 11 9 7 7 7 7 7 6 6 6 6 6 5 5 9 6 5 4 . . . Reactor 2 | . . . . . . . . . . . . . . . . 4 4 1 3 5 5 9 11 11 Treads 23 | . 26 26 32 33 27 29 30 29 30 30 31 31 25 20 20 16 17 17 17 17 14 14 15 13 Device 13 | . 10 14 11 6 11 15 14 14 18 15 7 6 6 6 6 9 11 12 16 20 25 30 21 18 Storage 7 | . 14 14 11 11 9 7 7 7 7 7 6 6 6 6 6 5 5 5 5 5 5 5 5 4 Processor 5 | . . . . 4 9 7 7 7 7 6 13 13 13 13 12 8 5 3 . . . . . . Protection 6 | . . . . . 6 6 7 7 4 7 5 6 6 6 6 8 11 11 13 12 9 2 7 9 Energy Gun 1 | . . . . . . . . . . . . . . . . . . . . . . 6 12 12 Energy Cannon 6 | . 10 13 10 10 8 7 6 6 7 9 6 6 6 4 6 4 4 2 3 4 5 5 5 3 Ballistic Gun 1 | . 13 . . . . . . . . . . . . . . . . . . . 1 6 2 . Ballistic Cannon 12 | . 4 14 21 21 18 15 15 15 15 8 12 13 13 13 13 10 10 12 10 10 13 1 . . Naked Turns . | . . . . . . . . . . . . . . . . . . . . . . . . . Heaviest Build 184 | 11 54 54 60 60 70 85 79 82 82 81 87 87 127 127 132 158 167 168 168 164 174 167 183 184 Greatest Support 240 | 20 40 40 66 66 66 86 86 86 84 84 112 112 180 180 188 190 190 190 190 190 190 190 188 240 Greatest Overweight (x) 41 | . 1 3 3 . 1 . . 1 . . . . 1 41 . 1 . . . . 1 1 . . Average Overweight (x) . | . . 1 . . . . . . . . . . . 3 . . . . . . . . . . Largest Inventory Capacity 25 | . 20 20 20 20 20 20 20 20 20 20 20 20 25 25 25 25 25 25 25 25 25 25 25 25 Average Capacity 22 | . 17 20 20 20 20 20 20 20 20 20 20 20 21 25 25 25 25 25 25 25 25 25 25 25 Most Carried 25 | . 20 20 20 20 20 20 20 20 20 20 20 20 25 25 25 25 25 25 25 25 25 25 25 25 Average Carried 21 | . 16 19 19 19 19 19 20 19 19 20 19 19 21 24 24 24 24 24 24 24 24 24 24 24 Final Capacity 25 | 8 20 20 20 20 20 20 20 20 20 20 20 20 25 25 25 25 25 25 25 25 25 25 25 25 Final Carried 25 | 6 20 20 20 20 20 20 20 20 20 20 20 20 25 25 25 25 25 25 25 25 25 25 25 24 Class Distribution -------------------- 22% | Scavenger-Tank 18% | Mutant 18% | Tank 10% | Scavenger-Mutant 10% | Scavenger-Gunner 7% | Gunner 4% | Derelict-Mutant 3% | Scavenger-Skirmisher Dominant Class ---------------- Mutant | -10/Materials Mutant | -10/Mines Tank | -9/Materials Mutant | -9/Storage Gunner | -8/Materials Tank | -7/Factory Tank | -7/Lower Caves Derelict-Mutant | -7/Lower Caves Mutant | -7/Zion Mutant | -6/Proximity Caves Scavenger-Gunner | -6/Factory Scavenger-Gunner | -6/Extension Scavenger-Gunner | -6/Cetus Scavenger-Gunner | -6/Archives Tank | -6/Hub_04(d) Scavenger-Gunner | -5/Factory Scavenger-Tank | -5/Upper Caves Scavenger-Tank | -5/Upper Caves Scavenger-Mutant | -5/Zhirov Scavenger-Tank | -4/Proximity Caves Scavenger-Tank | -4/Factory Scavenger-Tank | -4/Armory Scavenger-Mutant | -4/Lab Scavenger-Skirmisher | -3/Research Resources | -11 -10 -10 -9 -9 -8 -7 -7 -7 -7 -6 -6 -6 -6 -6 -6 -5 -5 -5 -5 -4 -4 -4 -4 -3 ----------- Run | Scr Mat Min Mat Sto Mat Fac Low Low Zio Pro Fac Ext Cet Arc Hub Fac Upp Upp Zhi Pro Fac Arm Lab Res Matter Collected 12296 | 200 459 256 913 551 683 647 329 217 40 201 589 464 250 182 755 635 452 867 140 504 828 1244 290 600 Remotely 1687 | . . . . . 69 155 . . . . . . . . 239 336 . 125 . 47 368 348 . . Salvage Created 18715 | . 1062 230 1465 1021 985 615 196 412 . 215 632 270 193 409 872 763 620 995 197 689 892 3318 90 2574 Parts 857 | . 74 10 104 58 39 30 12 13 . 9 27 6 9 18 26 31 27 37 4 22 29 138 14 120 Haulers Intercepted 21 | . 2 . 3 4 3 2 . . . . 2 . . . 3 . . . . . . . . 2 Recyclers Shooed 10 | . 2 . 1 . . . . . . . 1 . . . 1 . . . . . 2 . . 3 Parts Field Recycled . | . . . . . . . . . . . . . . . . . . . . . . . . . Retrieved Matter . | . . . . . . . . . . . . . . . . . . . . . . . . . Parts Self-Destructed 129 | . . . . . . . 19 15 . 10 . . . . . . 25 36 2 22 . . . . Prevented 1 | . . . . . . . . . . 1 . . . . . . . . . . . . . . Kills | -11 -10 -10 -9 -9 -8 -7 -7 -7 -7 -6 -6 -6 -6 -6 -6 -5 -5 -5 -5 -4 -4 -4 -4 -3 ------- Run | Scr Mat Min Mat Sto Mat Fac Low Low Zio Pro Fac Ext Cet Arc Hub Fac Upp Upp Zhi Pro Fac Arm Lab Res Combat Hostiles Destroyed 347 | . 23 12 31 21 22 11 11 15 . 11 9 3 5 2 9 15 14 24 . 22 13 45 1 28 Melee 2 | . . . . . . . . . . . . . . . . 1 1 . . . . . . . Guns 48 | . 9 . . . . . . . . . . . . . . . . . . . . 24 . 15 Cannons 223 | . 13 8 29 18 18 11 6 3 . 5 6 3 5 2 8 8 10 16 . 15 12 19 1 7 AOE 60 | . . 4 2 2 2 . 5 12 . 6 3 . . . . 4 2 7 . 7 . . . 4 Classes Destroyed 20 | . 8 1 3 1 . 3 . 1 . 1 . 1 . . 1 . . . . . . . . . Worker 13 | . 2 . 1 1 1 . . . . . . . . . 3 . . . . . . . . 5 Builder 6 | . . . 1 1 . . . . . . 2 . . . 1 . . . . . 1 . . . Hauler 21 | . 2 . 3 4 3 2 . . . . 2 . . . 3 . . . . . . . . 2 Recycler 17 | . 2 1 2 . . 2 . . . . 2 1 . . 2 1 . . . . 4 . . . Minesweeper 2 | . . . . . . . . 1 . . . . . . . . . 1 . . . . . . Mechanic 2 | . 1 . . 1 . . . . . . . . . . . . . . . . . . . . Operator 15 | . 2 . . 2 . 1 . . . . 1 . . 8 . . . . . . . 1 . . Watcher 23 | . 3 . 4 2 2 1 . . . . . 2 . . . 1 . . . . . 4 . 4 Swarmer 77 | . 6 3 6 3 2 . 7 6 . . 5 2 2 . . 5 2 7 . 10 4 4 . 3 Grunt 135 | . 17 2 15 6 15 4 3 5 . 3 1 . . . 3 2 10 11 . 9 . 19 . 10 Brawler 8 | . . . . 1 . . . 2 . . . . . . . 1 . 2 . . . 1 . 1 Duelist 12 | . . . 2 . . . . 1 . 1 . . . . . . . 2 . 1 . 3 . 2 Protector 1 | . . . . . . . . . . . . . . . 1 . . . . . . . . . Sentry 50 | . . . 8 11 5 1 1 1 . . . . . 2 1 5 1 2 . . 3 8 . 1 Specialist 1 | . . . . . . 1 . . . . . . . . . . . . . . . . . . Hunter 11 | . . . . . . 1 . . . . 1 . . . . 1 . . . . 2 2 . 4 Programmer 27 | . . . . . . 4 . . . 1 2 . . . 1 . . . . 2 4 8 . 5 Behemoth 6 | . . . . . . . . . . . . 1 . . . 1 1 1 . . . . . 2 Cetus Guard 3 | . . . . . . . . . . . . . 3 . . . . . . . . . . . Lightning 3 | . . . . . . . . . . . . . . . 3 . . . . . . . . . Assembled 12 | . . 7 . . . . . . . 5 . . . . . . . . . . . . . . Mutant 1 | . . . . . . . . . . 1 . . . . . . . . . . . . . . Best Kill Streak 10 | . 6 3 8 8 5 4 4 8 . 4 5 2 2 4 5 8 5 6 . 6 5 10 1 8 Combat Bots Only 10 | . 3 3 6 4 5 4 4 8 . 4 5 2 2 2 3 7 5 6 . 6 4 10 1 7 Max Kills in Single Turn 3 | . 1 2 3 2 3 1 2 3 . 3 3 1 2 1 2 3 2 2 . 3 2 3 1 2 Gunslinging 1 | . . . . . . . . . . . . . . . . . . . . . . . . 1 Exploded 3 | . . 2 2 1 2 . 2 3 . 3 3 . . . . 3 2 2 . 3 . . . 2 Melee 1 | . . . . . . . . . . . . . . . . 1 1 . . . . . . . Uniques/NPCs Destroyed 1 | . . . . . . . . . . . . . . . . . . . . . . . 1 . A5 (-4/Lab) Combat | -11 -10 -10 -9 -9 -8 -7 -7 -7 -7 -6 -6 -6 -6 -6 -6 -5 -5 -5 -5 -4 -4 -4 -4 -3 -------- Run | Scr Mat Min Mat Sto Mat Fac Low Low Zio Pro Fac Ext Cet Arc Hub Fac Upp Upp Zhi Pro Fac Arm Lab Res Damage Taken 20744 | . 614 169 530 383 658 821 247 504 . 161 687 300 153 93 1421 1526 1036 1241 . 931 1385 3279 158 4447 Core 1233 | . 107 4 81 69 77 76 4 . . 19 84 8 . . 63 65 108 50 . 45 48 142 12 171 Absorbed by Shields 2940 | . 117 66 181 123 149 90 100 77 . 64 . 228 . . . 548 377 443 . 354 23 . . . Reduced by Siege Mode 1011 | . . . . . . . . . . . . . . . 134 57 50 4 . 56 63 271 28 348 Core Remaining (%) 77 | 100 . 55 . 62 86 . . . . 85 . . . . 81 . . . . 73 . . 74 . Volleys Fired 933 | . 82 26 60 63 75 38 24 13 . 18 46 23 11 37 55 29 23 41 . 35 40 111 14 69 Largest 4 | . 2 2 3 3 3 3 3 3 . 3 3 3 3 3 3 3 3 3 . 3 4 4 4 4 Hottest 363 | . 103 103 138 138 159 172 172 172 . 193 161 161 176 176 176 181 210 210 . 212 277 317 317 363 Shots Fired 2466 | . 164 50 175 157 203 103 47 27 . 30 102 57 33 49 151 83 60 89 . 87 124 399 47 229 Gun 561 | . 105 . . . . . . . . . . . . . . . . . . . 2 256 33 165 Cannon 1853 | . 59 48 173 153 201 103 42 22 . 22 101 57 33 49 151 81 57 82 . 80 122 143 14 60 Launcher 52 | . . 2 2 4 2 . 5 5 . 8 1 . . . . 2 3 7 . 7 . . . 4 Special . | . . . . . . . . . . . . . . . . . . . . . . . . . Kinetic 1330 | . 123 24 115 94 128 69 31 14 . 10 66 34 22 12 96 54 40 61 . 52 91 170 11 13 Thermal 1084 | . 41 24 58 59 73 34 11 8 . 12 35 23 11 37 55 27 17 21 . 28 33 229 36 212 Explosive 52 | . . 2 2 4 2 . 5 5 . 8 1 . . . . 2 3 7 . 7 . . . 4 Electromagnetic . | . . . . . . . . . . . . . . . . . . . . . . . . . Robot Hit Streak 33 | . 10 7 11 29 20 17 23 17 . 8 15 15 8 25 18 22 24 13 . 17 16 33 10 32 Robot Miss Streak 7 | . 4 3 2 4 3 2 3 2 . 1 3 4 1 2 3 1 2 2 . 2 3 3 2 7 Penetration Max 2 | . . . . . . . . . . . . 1 . . . . . . . . . 1 . 2 Secondary Targets 1 | . . . . . . . . . . . . . . . . . . . . . . . . 1 Max Gunslinging Chain 1 | . . . . . . . . . . . . . . . . . . . . . . . . 1 Shots Hit Robots 1630 | . 108 25 102 99 133 71 19 21 . 22 65 36 22 53 111 73 43 54 3 57 71 257 34 151 Core Hits 761 | . 45 18 50 33 46 24 16 27 . 27 25 13 14 21 39 35 27 39 1 37 29 99 12 84 Critical Kills 29 | . 1 . . 1 2 . . . . . . . . . 1 2 1 . . . 1 11 . 9 Critical Parts Destroyed 32 | . . . . . . . . . . . . . . . . . . . . . . 14 4 14 Critical Strikes 117 | . 1 . 1 3 6 5 1 1 . 1 6 3 1 2 8 3 3 3 1 3 6 30 6 23 Meltdown 11 | . 1 . . 1 2 . . . . . . . . . 1 2 1 . . . 1 2 . . Destroy 55 | . . . . . . . . . . . . . . . . . . . . . . 26 6 23 Blast 50 | . . . 1 2 4 5 1 1 . 1 6 3 1 2 7 1 2 3 . 3 5 2 . . Puncture 1 | . . . . . . . . . . . . . . . . . . . 1 . . . . . Melee Attacks 53 | . . . . . . . . . . . 1 . . 11 . 20 4 12 3 . . . . 2 Impact . | . . . . . . . . . . . . . . . . . . . . . . . . . Slashing . | . . . . . . . . . . . . . . . . . . . . . . . . . Piercing 53 | . . . . . . . . . . . 1 . . 11 . 20 4 12 3 . . . . 2 Sneak Attacks 8 | . . . . . . . . . . . . . . 6 . 1 . . . . . . . 1 Combat Hostiles 2 | . . . . . . . . . . . . . . . . 1 . . . . . . . 1 Follow-up Attacks . | . . . . . . . . . . . . . . . . . . . . . . . . . Damage Inflicted 51006 | . 1620 764 2355 2337 2719 1958 961 1696 . 1124 2114 1102 696 1842 2898 2413 1713 2648 164 2665 2793 7770 732 5922 Guns 9117 | . 782 . . . . . . . . . . . . . . . . . . . . 4336 429 3570 Cannons 32634 | . 833 539 2147 1881 2563 1947 489 448 . 438 1774 1093 696 1161 2863 1598 1155 1505 . 1773 2692 3385 303 1351 Explosions 7379 | . . 223 184 397 137 . 472 1220 . 686 316 . . . . 379 430 941 . 892 101 . . 1001 Melee 1577 | . . . . . . . . . . . . . . 681 . 436 128 168 164 . . . . . Ramming 299 | . 5 2 24 59 19 11 . 28 . . 24 9 . . 35 . . 34 . . . 49 . . Kinetic 20201 | . 953 268 1130 823 1673 1134 359 244 . 162 1032 616 460 252 1733 994 825 1089 . 1272 1820 2874 126 362 Thermal 21550 | . 662 271 1017 1058 890 813 130 204 . 276 742 477 236 909 1130 604 330 416 . 501 872 4847 606 4559 Explosive 7379 | . . 223 184 397 137 . 472 1220 . 686 316 . . . . 379 430 941 . 892 101 . . 1001 Electromagnetic . | . . . . . . . . . . . . . . . . . . . . . . . . . Impact . | . . . . . . . . . . . . . . . . . . . . . . . . . Slashing . | . . . . . . . . . . . . . . . . . . . . . . . . . Piercing 1577 | . . . . . . . . . . . . . . 681 . 436 128 168 164 . . . . . Highest Corruption 8 | . 3 3 . 3 2 5 . . . 4 2 2 2 2 8 . . 5 . . . 1 . 8 Average Corruption 2 | . 2 3 . 2 2 2 . . . 4 1 1 1 1 5 . . 2 . . . 1 . 4 Corruption Purged 28 | . . . . . . 5 . . . . 2 2 1 3 . . . 5 . . . 2 . 8 Effects 95 | . 2 24 . 25 10 5 . . . 3 5 . 2 1 9 . . 1 . . . 1 . 7 Message Errors 31 | . 1 10 . 5 3 2 . . . 1 2 . . 1 1 . . 1 . . . 1 . 3 Matter Fused 21 | . . 10 . 7 . 1 . . . . . . . . 2 . . . . . . . . 1 Heat Flow Errors 14 | . . 2 . 3 5 1 . . . 1 . . . . 1 . . . . . . . . 1 Energy Discharges 13 | . . 1 . 6 1 . . . . . 2 . 1 . 1 . . . . . . . . 1 Parts Rejected 1 | . . . . . . . . . . 1 . . . . . . . . . . . . . . Data Loss (minor) 9 | . 1 1 . 3 1 . . . . . . . 1 . 1 . . . . . . . . 1 Data Loss (major) 1 | . . . . . . . . . . . . . . . 1 . . . . . . . . . Weapon Failures 5 | . . . . 1 . 1 . . . . 1 . . . 2 . . . . . . . . . Overload Shots . | . . . . . . . . . . . . . . . . . . . . . . . . . Overflow Damage 1114 | . 6 19 1 66 31 83 51 50 . 21 34 . . 54 80 31 55 22 31 98 138 117 . 126 Projectiles 844 | . 6 19 . 48 31 83 2 17 . 21 20 . . 8 80 16 55 22 . 74 138 117 . 87 Explosions 168 | . . . 1 . . . 49 33 . . 14 . . . . 8 . . . 24 . . . 39 Melee 102 | . . . . 18 . . . . . . . . . 46 . 7 . . 31 . . . . . Knockbacks 128 | . 1 6 11 8 18 11 2 . . 2 9 2 1 . 5 . 9 8 . 12 15 8 . . Impact 3 | . . . 1 . . . . . . . . 1 . . . . . 1 . . . . . . Kinetic 121 | . 1 5 10 8 18 10 2 . . 2 9 1 1 . 5 . 9 7 . 12 13 8 . . Secondary 4 | . . 1 . . . 1 . . . . . . . . . . . . . . 2 . . . Self-Inflicted Damage 240 | . . 32 . 38 2 . 27 . . . . . . . . . . 54 . 10 . 57 . 20 Shots 8 | . . 1 . 1 1 . 1 . . . . . . . . . . 1 . 1 . 1 . 1 Rammed 21 | . 2 1 3 3 1 . . 2 . . 1 2 . . 3 . . 1 . . . 2 . . Targets Rammed 25 | . 3 1 3 4 1 1 . 2 . . 1 2 . . 3 . . 2 . . . 2 . . Kicked . | . . . . . . . . . . . . . . . . . . . . . . . . . Crushed 4 | . 1 . . 1 . 1 . . . . . . . . . . . 1 . . . . . . Highest Temperature 499 | . 218 256 266 297 241 499 210 78 . 176 336 84 117 198 229 230 210 232 . 23 248 196 199 198 Average Temperature 76 | . 67 80 103 86 31 115 94 35 . 46 83 20 30 77 60 88 115 68 . 10 44 64 123 52 Received Heat Transfer 3358 | . 248 16 149 98 346 126 50 99 . 44 36 19 18 9 171 134 275 248 . 203 72 489 . 508 Effects 1 | . . . . . . . . . . . . . . . 1 . . . . . . . . . Energy Bleed 1 | . . . . . . . . . . . . . . . 1 . . . . . . . . . Siege Activations 31 | . . . . . . . . . . . . . 1 . 1 3 5 2 . 4 3 5 1 6 Total Turns 951 | . . . . . . . . . . . . . 2 . 90 62 76 43 . 74 59 149 42 354 Longest Duration 241 | . . . . . . . . . . . . . 2 . 90 41 20 26 . 34 27 63 42 241 Robots Corrupted . | . . . . . . . . . . . . . . . . . . . . . . . . . Combat Hostiles . | . . . . . . . . . . . . . . . . . . . . . . . . . Parts Fried 2 | . . . . 2 . . . . . . . . . . . . . . . . . . . . Impact Corruptions 1 | . . . . 1 . . . . . . . . . . . . . . . . . . . . Robots Melted 12 | . 1 . . 1 2 . . . . . . . . . 1 2 1 . . . 1 3 . . Combat Hostiles 11 | . 1 . . 1 2 . . . . . . . . . 1 2 1 . . . 1 2 . . Parts Melted 83 | . 2 . 2 5 3 3 . . . . 1 1 . 4 3 3 . 1 . . 4 24 . 27 Heat Transferred 32249 | . 1110 481 1776 1850 1593 1500 250 374 . 435 999 629 385 1800 2102 1200 650 650 . 750 1250 5973 831 5661 Parts Sabotaged 4 | . . . . . . . . . . . . . . . . . . 1 . . . . . 3 Parts Stolen . | . . . . . . . . . . . . . . . . . . . . . . . . . Parts Stripped . | . . . . . . . . . . . . . . . . . . . . . . . . . Power Chain Reactions . | . . . . . . . . . . . . . . . . . . . . . . . . . Missiles Intercepted . | . . . . . . . . . . . . . . . . . . . . . . . . . Alert | -11 -10 -10 -9 -9 -8 -7 -7 -7 -7 -6 -6 -6 -6 -6 -6 -5 -5 -5 -5 -4 -4 -4 -4 -3 ------- Run | Scr Mat Min Mat Sto Mat Fac Low Low Zio Pro Fac Ext Cet Arc Hub Fac Upp Upp Zhi Pro Fac Arm Lab Res Peak Influence 1015 | . 354 223 583 350 426 1015 . . . . 161 383 596 427 529 563 . . . . 483 919 . 564 Initial 238 | . . 138 . 57 26 . . . . . . 4 214 238 . 231 . . . . 67 236 . . Average 257 | . 144 75 328 117 166 348 . . . . 48 132 438 205 376 402 . . . . 202 560 . 321 Maximum Alert Level 3 | . 1 1 2 1 2 3 . . . . . 1 2 2 2 2 . . . . 2 3 . 2 Low Security (%) 46 | . 77 74 15 91 61 61 . . . . 100 67 . 37 3 . . . . . 69 . . 30 Level 1 28 | . 22 25 51 8 33 . . . . . . 32 48 56 59 50 . . . . 15 14 . 19 Level 2 21 | . . . 33 . 4 3 . . . . . . 51 6 37 49 . . . . 15 71 . 50 Level 3 3 | . . . . . . 33 . . . . . . . . . . . . . . . 13 . . Level 4 . | . . . . . . . . . . . . . . . . . . . . . . . . . Level 5 . | . . . . . . . . . . . . . . . . . . . . . . . . . High Security . | . . . . . . . . . . . . . . . . . . . . . . . . . Max Security . | . . . . . . . . . . . . . . . . . . . . . . . . . Squads Dispatched 69 | . 7 . 4 7 3 8 . 1 . . 5 . . . 6 5 . 1 . . 7 7 . 8 Investigation 12 | . 5 . 3 1 1 1 . . . . . . . . . . . . . . . 1 . . Extermination 17 | . . . . . . 2 . . . . 3 . . . 2 1 . . . . 3 4 . 2 Reinforcement 22 | . 2 . 1 3 2 5 . . . . 2 . . . 3 1 . . . . 1 1 . 1 Assault 5 | . . . . . . . . 1 . . . . . . . . . 1 . . . 1 . 2 Garrison 10 | . . . . 3 . . . . . . . . . . 1 3 . . . . 3 . . . Intercept 3 | . . . . . . . . . . . . . . . . . . . . . . . . 3 Construction Impeded 3 | . . . . . . 1 . . . . . . . . 1 . . . . . 1 . . . Haulers Reinforced 5 | . . . . . . 1 . . . . 1 . . . 2 . . . . . . . . 1 Cargo Convoy Interrupts 1 | . . . . . . 1 . . . . . . . . . . . . . . . . . . Stealth | -11 -10 -10 -9 -9 -8 -7 -7 -7 -7 -6 -6 -6 -6 -6 -6 -5 -5 -5 -5 -4 -4 -4 -4 -3 --------- Run | Scr Mat Min Mat Sto Mat Fac Low Low Zio Pro Fac Ext Cet Arc Hub Fac Upp Upp Zhi Pro Fac Arm Lab Res Distress Signals 19 | . . . 4 3 3 . . . . . . 2 2 . 1 . . . . . 1 1 . 2 Communications Jammed 19 | . . . . . . . . . . . . . . . . . . . . . 3 16 . . Distress Signals 18 | . . . . . . . . . . . . . . . . . . . . . 2 16 . . Times Spotted 509 | . 33 16 39 30 42 15 11 14 . 15 13 19 12 19 19 15 15 29 . 28 14 69 1 41 Peak Tracking Total 10 | . 3 3 5 5 7 4 4 10 . 5 5 3 5 2 4 7 5 8 . 9 4 7 1 8 Tactical Retreats 23 | . . 1 1 2 2 . 1 2 . . 1 1 . . . . 1 4 . 4 . 2 . 1 Traps | -11 -10 -10 -9 -9 -8 -7 -7 -7 -7 -6 -6 -6 -6 -6 -6 -5 -5 -5 -5 -4 -4 -4 -4 -3 ------- Run | Scr Mat Min Mat Sto Mat Fac Low Low Zio Pro Fac Ext Cet Arc Hub Fac Upp Upp Zhi Pro Fac Arm Lab Res Traps Triggered 16 | . 4 . 1 4 2 . . . . . . 4 . . . . . . . . . . . 1 Indirectly . | . . . . . . . . . . . . . . . . . . . . . . . . . Trap Hack Attempts 13 | . . . . . 13 . . . . . . . . . . . . . . . . . . . Triggered . | . . . . . . . . . . . . . . . . . . . . . . . . . Disarmed . | . . . . . . . . . . . . . . . . . . . . . . . . . Reprogrammed 2 | . . . . . 2 . . . . . . . . . . . . . . . . . . . Reused 1 | . . . . . 1 . . . . . . . . . . . . . . . . . . . Traps Extracted . | . . . . . . . . . . . . . . . . . . . . . . . . . Installed . | . . . . . . . . . . . . . . . . . . . . . . . . . Triggered 4 | . . . . . 1 1 . . . 1 . . . . . . . 1 . . . . . . Machines | -11 -10 -10 -9 -9 -8 -7 -7 -7 -7 -6 -6 -6 -6 -6 -6 -5 -5 -5 -5 -4 -4 -4 -4 -3 ---------- Run | Scr Mat Min Mat Sto Mat Fac Low Low Zio Pro Fac Ext Cet Arc Hub Fac Upp Upp Zhi Pro Fac Arm Lab Res Machines Disabled 47 | . 2 . . 6 2 9 . 2 . . . . 1 1 2 1 . . . . 10 6 3 2 Max in Single Turn 4 | . 1 . . 1 1 1 . 1 . . . . . . 1 1 . . . . 4 1 1 1 Garrison Access 3 | . . . . . . . . . . . . . . . 1 . . . . . . . . 2 Network Hub 1 | . . . . . . . . . . . . . . . 1 . . . . . . . . . Machines Sabotaged . | . . . . . . . . . . . . . . . . . . . . . . . . . Garrisons Compromised 1 | . . . . . . 1 . . . . . . . . . . . . . . . . . . Overloaded Fab Kills . | . . . . . . . . . . . . . . . . . . . . . . . . . Fab Network Shutdowns . | . . . . . . . . . . . . . . . . . . . . . . . . . Hacking | -11 -10 -10 -9 -9 -8 -7 -7 -7 -7 -6 -6 -6 -6 -6 -6 -5 -5 -5 -5 -4 -4 -4 -4 -3 --------- Run | Scr Mat Min Mat Sto Mat Fac Low Low Zio Pro Fac Ext Cet Arc Hub Fac Upp Upp Zhi Pro Fac Arm Lab Res Machines Accessed 66 | . 9 . 14 8 3 6 1 2 1 1 1 1 . . 1 5 1 1 5 . 1 2 . 3 Terminals 33 | . 6 . 11 6 3 4 . . . 1 1 . . . . . . . . . . . . 1 Fabricators 5 | . . . . . . 1 . . . . . . . . . 3 . . . . . 1 . . Repair Stations 9 | . 1 . 1 1 . 1 . . . . . 1 . . . 2 . . . . 1 1 . . Recycling Units 5 | . 2 . 2 1 . . . . . . . . . . . . . . . . . . . . Scanalyzers 1 | . . . . . . . . . . . . . . . . . . . . . . . . 1 Garrison Access 2 | . . . . . . . . . . . . . . . 1 . . . . . . . . 1 Total Hacks 198 | . 31 . 44 31 8 13 1 5 6 2 2 2 . . 1 11 1 1 18 . 2 11 . 8 Successful 136 | . 21 . 25 22 7 5 1 5 6 2 1 2 . . 1 7 1 1 18 . 2 6 . 3 Failed 61 | . 9 . 19 9 1 8 . . . . 1 . . . . 4 . . . . . 5 . 5 Catastrophic 11 | . 1 . 4 2 . 3 . . . . . . . . . . . . . . . 1 . . Database Lockouts 1 | . 1 . . . . . . . . . . . . . . . . . . . . . . . Manual 76 | . 21 . 25 13 5 3 . . . . . . 1 . . 5 . . . . . . . 3 Terminals 118 | . 27 . 37 28 8 9 . . . 2 2 . . . . . . . . . . . . 5 Fabricators 10 | . . . . . . 1 . . . . . . . . . 7 . . . . . 2 . . Repair Stations 29 | . 2 . 5 2 . 3 . . . . . 2 . . . 4 . . . . 2 9 . . Recycling Units 5 | . 2 . 2 1 . . . . . . . . . . . . . . . . . . . . Scanalyzers 1 | . . . . . . . . . . . . . . . . . . . . . . . . 1 Garrison Access 3 | . . . . . . . . . . . . . . . 1 . . . . . . . . 2 Terminal Hacks 82 | . 10 . 16 14 4 2 1 5 6 2 1 . . . . . 1 1 18 . . . . 1 Record 12 | . . . . . . . . 4 . 2 . . . . . . . . 6 . . . . . Part Schematic 12 | . 2 . . . . . . . 6 . . . . . . . . . 4 . . . . . Robot Analysis 6 | . 2 . . . . . . . . . . . . . . . . . 4 . . . . . Prototype ID Bank 14 | . 1 . 7 2 . . . . . . . . . . . . . . 4 . . . . . Open Door 4 | . . . . . . . 1 1 . . . . . . . . 1 1 . . . . . . Branch Access Points 1 | . . . 1 . . . . . . . . . . . . . . . . . . . . . Emergency Access Points 1 | . 1 . . . . . . . . . . . . . . . . . . . . . . . Terminal Index 1 | . 1 . . . . . . . . . . . . . . . . . . . . . . . Alert Level 6 | . 1 . 1 2 1 . . . . . 1 . . . . . . . . . . . . . Unreport Threat 9 | . . . 3 3 2 . . . . . . . . . . . . . . . . . . 1 Locate Traps 3 | . . . 1 2 . . . . . . . . . . . . . . . . . . . . Transport Status 1 | . 1 . . . . . . . . . . . . . . . . . . . . . . . Hauler Manifests 2 | . . . 1 1 . . . . . . . . . . . . . . . . . . . . Registered Components 1 | . . . . 1 . . . . . . . . . . . . . . . . . . . . Zone Layout 9 | . 1 . 2 3 1 2 . . . . . . . . . . . . . . . . . . Fabricator Hacks . | . . . . . . . . . . . . . . . . . . . . . . . . . Repair Station Hacks 24 | . 2 . 4 2 . 2 . . . . . 2 . . . 4 . . . . 2 6 . . Scan Component 13 | . 1 . 2 1 . 1 . . . . . 1 . . . 2 . . . . 1 4 . . Repair 11 | . 1 . 2 1 . 1 . . . . . 1 . . . 2 . . . . 1 2 . . Recycling Unit Hacks . | . . . . . . . . . . . . . . . . . . . . . . . . . Scanalyzer 1 | . . . . . . . . . . . . . . . . . . . . . . . . 1 Insert Component 1 | . . . . . . . . . . . . . . . . . . . . . . . . 1 Garrison Access Hacks 2 | . . . . . . . . . . . . . . . 1 . . . . . . . . 1 Seal Access 2 | . . . . . . . . . . . . . . . 1 . . . . . . . . 1 Unauthorized Hacks 27 | . 9 . 5 6 3 1 . . . . . . . . . 3 . . . . . . . . Terminals 19 | . 7 . 3 5 3 1 . . . . . . . . . . . . . . . . . . Track 3 | . 2 . . 1 . . . . . . . . . . . . . . . . . . . . Botnet 13 | . 4 . 3 3 2 1 . . . . . . . . . . . . . . . . . . Operators 3 | . 1 . . 1 1 . . . . . . . . . . . . . . . . . . . Fabricators 3 | . . . . . . . . . . . . . . . . 3 . . . . . . . . Report 2 | . . . . . . . . . . . . . . . . 2 . . . . . . . . Haulers 1 | . . . . . . . . . . . . . . . . 1 . . . . . . . . Repair Stations . | . . . . . . . . . . . . . . . . . . . . . . . . . Recycling Units 5 | . 2 . 2 1 . . . . . . . . . . . . . . . . . . . . Tunnel 5 | . 2 . 2 1 . . . . . . . . . . . . . . . . . . . . Scanalyzers . | . . . . . . . . . . . . . . . . . . . . . . . . . Garrison Access . | . . . . . . . . . . . . . . . . . . . . . . . . . Data Cores Recovered 3 | . 1 . . . . . . . . . 1 1 . . . . . . . . . . . . Used . | . . . . . . . . . . . . . . . . . . . . . . . . . Hacking Detections 41 | . 6 . 12 7 3 5 . . . . 1 1 1 . . 2 . . . . . 2 . 1 Full Trace Events 3 | . 1 . . . . 1 . . . . . . . . . . . . . . . 1 . . Feedback Events 1 | . . . . . . . . . . . . . . . . . . . . . . 1 . . Corruption 1 | . . . . . . . . . . . . . . . . . . . . . . 1 . . Feedback Blocked . | . . . . . . . . . . . . . . . . . . . . . . . . . Robot Schematics Acquired . | . . . . . . . . . . . . . . . . . . . . . . . . . Robots Built . | . . . . . . . . . . . . . . . . . . . . . . . . . Matter . | . . . . . . . . . . . . . . . . . . . . . . . . . Time . | . . . . . . . . . . . . . . . . . . . . . . . . . Total Robot Build Rating . | . . . . . . . . . . . . . . . . . . . . . . . . . Part Schematics Acquired 12 | . 2 . . . . . . . 6 . . . . . . . . . 4 . . . . . Parts Built . | . . . . . . . . . . . . . . . . . . . . . . . . . Matter . | . . . . . . . . . . . . . . . . . . . . . . . . . Time . | . . . . . . . . . . . . . . . . . . . . . . . . . Total Part Build Rating . | . . . . . . . . . . . . . . . . . . . . . . . . . Parts Repaired 11 | . 1 . 2 1 . 1 . . . . . 1 . . . 2 . . . . 1 2 . . Time 645 | . 26 . 58 26 . 38 . . . . . 38 . . . 133 . . . . 54 272 . . Parts Recycled . | . . . . . . . . . . . . . . . . . . . . . . . . . Recycled Matter . | . . . . . . . . . . . . . . . . . . . . . . . . . Retrieved Matter . | . . . . . . . . . . . . . . . . . . . . . . . . . Retrieved Components . | . . . . . . . . . . . . . . . . . . . . . . . . . Parts Scanalyzed . | . . . . . . . . . . . . . . . . . . . . . . . . . Part Schematics Acquired . | . . . . . . . . . . . . . . . . . . . . . . . . . Parts Damaged . | . . . . . . . . . . . . . . . . . . . . . . . . . Bothacking | -11 -10 -10 -9 -9 -8 -7 -7 -7 -7 -6 -6 -6 -6 -6 -6 -5 -5 -5 -5 -4 -4 -4 -4 -3 ------------ Run | Scr Mat Min Mat Sto Mat Fac Low Low Zio Pro Fac Ext Cet Arc Hub Fac Upp Upp Zhi Pro Fac Arm Lab Res Used RIF Installer . | . . . . . . . . . . . . . . . . . . . . . . . . . Robots Hacked . | . . . . . . . . . . . . . . . . . . . . . . . . . Non-combat . | . . . . . . . . . . . . . . . . . . . . . . . . . Combat . | . . . . . . . . . . . . . . . . . . . . . . . . . Robot Hacks Applied . | . . . . . . . . . . . . . . . . . . . . . . . . . Relay Couplers Released 1 | . . . . . . . . . . . . . . . . . . . . . . . . 1 Machine Destruction 1 | . . . . . . . . . . . . . . . . . . . . . . . . 1 Robots Rewired 15 | . . . . . . . . 2 . . . 7 . . . . . 2 . . . 4 . . Allies Hacked 2 | . . . . . . 1 . . . 1 . . . . . . . . . . . . . . Hacks Repelled . | . . . . . . . . . . . . . . . . . . . . . . . . . Allies | -11 -10 -10 -9 -9 -8 -7 -7 -7 -7 -6 -6 -6 -6 -6 -6 -5 -5 -5 -5 -4 -4 -4 -4 -3 -------- Run | Scr Mat Min Mat Sto Mat Fac Low Low Zio Pro Fac Ext Cet Arc Hub Fac Upp Upp Zhi Pro Fac Arm Lab Res Total Allies 46 | . . 1 . . . 18 . 2 . . . 15 4 . . . . 2 . . . 4 . . Largest Group 18 | . . 1 . . . 18 . 2 2 2 . 9 9 6 3 . . 2 . . . 4 . . Highest-Rated Group 757 | . . 31 . . . 757 . 40 40 40 . 366 483 434 278 . . 58 . . . 224 . . Highest-Rated Ally 156 | . . 31 . . . 74 . 20 20 20 . 156 156 95 95 . . 29 . . . 56 . . Total Orders 35 | . . . . . . . . . . 4 2 10 4 2 5 3 . . . . 2 3 . . STAY 9 | . . . . . . . . . . 2 . . 3 1 3 . . . . . . . . . FOLLOW 6 | . . . . . . . . . . 2 . . 1 1 2 . . . . . . . . . RETURN 20 | . . . . . . . . . . . 2 10 . . . 3 . . . . 2 3 . . Ally Attacks 313 | . . 12 . . . 29 . . . 18 . 85 41 14 61 . . 22 . . . 31 . . Total Damage 8916 | . . 147 . . . 1577 . . . 305 . 1735 1267 436 2060 . . 338 . . . 1051 . . Kills 75 | . . 5 . . . 14 . . . 2 . 20 10 2 16 . . 2 . . . 4 . . Allies Corrupted . | . . . . . . . . . . . . . . . . . . . . . . . . . Allies Melted . | . . . . . . . . . . . . . . . . . . . . . . . . . Intel | -11 -10 -10 -9 -9 -8 -7 -7 -7 -7 -6 -6 -6 -6 -6 -6 -5 -5 -5 -5 -4 -4 -4 -4 -3 ------- Run | Scr Mat Min Mat Sto Mat Fac Low Low Zio Pro Fac Ext Cet Arc Hub Fac Upp Upp Zhi Pro Fac Arm Lab Res Robot Analysis Total 6 | . 2 . . . . . . . . . . . . . . . . . 4 . . . . . Derelict Logs Recovered 11 | . . 1 . . . . 1 2 1 1 . . . . . . 2 1 . 2 . . . . Drone Launches 20 | . . . . . . . . . . . 2 10 . . . 3 . . . . 2 3 . . Drone Recoveries 20 | . . . . . . . . . . . 2 10 . . . 3 . . . . 2 3 . . Exploration | -11 -10 -10 -9 -9 -8 -7 -7 -7 -7 -6 -6 -6 -6 -6 -6 -5 -5 -5 -5 -4 -4 -4 -4 -3 ------------- Run | Scr Mat Min Mat Sto Mat Fac Low Low Zio Pro Fac Ext Cet Arc Hub Fac Upp Upp Zhi Pro Fac Arm Lab Res Turns Passed 33421 | . 1535 1508 1614 1538 1624 1293 1529 1675 1774 1225 1028 1483 396 1282 1579 928 2437 2304 500 1500 792 2054 675 1148 Spaces Moved 15244 | 1 512 563 775 829 617 703 971 1056 1137 723 405 764 191 258 482 414 1141 991 287 744 318 748 307 307 Core 23 | . . . . . . . . . . . . . . 23 . . . . . . . . . . Treads 14952 | . 452 428 702 829 617 703 971 1056 1137 723 405 764 191 235 482 414 1141 991 287 744 318 748 307 307 Legs 61 | 1 60 . . . . . . . . . . . . . . . . . . . . . . . Wheels 208 | . . 135 73 . . . . . . . . . . . . . . . . . . . . . Hover . | . . . . . . . . . . . . . . . . . . . . . . . . . Flight . | . . . . . . . . . . . . . . . . . . . . . . . . . Fastest Speed 120 | 120 120 145 145 145 145 148 148 148 152 152 152 152 152 160 160 160 160 160 160 160 155 155 160 160 Average Speed 165 | 120 227 232 153 145 205 148 148 152 152 152 153 153 174 334 160 162 160 160 160 160 162 158 160 160 Slowest Speed 2100 | 120 260 260 160 145 245 148 148 252 152 152 154 154 250 2100 160 260 160 160 160 160 260 252 160 160 Overloaded Moves . | . . . . . . . . . . . . . . . . . . . . . . . . . Propulsion Burnouts . | . . . . . . . . . . . . . . . . . . . . . . . . . Robots Hopped . | . . . . . . . . . . . . . . . . . . . . . . . . . Cave-ins Triggered . | . . . . . . . . . . . . . . . . . . . . . . . . . Teleports 1 | . . . . . . . . . . . . . . . . . . . . . . 1 . . Exploration Rate (%) 62 | 2 90 98 81 95 61 20 94 95 84 86 14 86 57 74 20 16 97 85 60 74 10 43 98 15 Regions Visited 24 Branch Regions 16 Pre-discovered Areas 11 | . 2 . 2 1 . . . . . . . . . . . . . 1 3 2 . . . . Known Exits Taken 8 | . . . 1 1 . . . 1 . 1 1 . . . 1 1 . . . . 1 . . . Unknown Exits Taken 16 | 1 1 1 . . 1 1 1 . 1 . . 1 1 1 . . 1 1 1 1 . 1 1 . Scrap Searched 24 | . . . . . . . 9 4 2 1 . . . . . . 4 2 . 2 . . . . Spaces Dug 98 | . . . 13 9 3 2 12 . . 10 3 . . . . 3 2 9 . . 6 4 . 22 Terrain Destroyed 763 | . . 16 24 29 30 8 50 42 . 60 20 8 3 3 13 28 32 90 . 87 67 76 . 77 Melee 6 | . . . . . . . . . . . 1 . . . . 3 . 2 . . . . . . Projectile 283 | . . 3 1 . 12 8 7 2 . 2 11 8 3 3 13 4 17 32 . 29 32 66 . 30 AOE 474 | . . 13 23 29 18 . 43 40 . 58 8 . . . . 21 15 56 . 58 35 10 . 47 Terrain Rammed . | . . . . . . . . . . . . . . . . . . . . . . . . . Walls Destroyed . | . . . . . . . . . . . . . . . . . . . . . . . . . Machines Disabled . | . . . . . . . . . . . . . . . . . . . . . . . . . Actions | -11 -10 -10 -9 -9 -8 -7 -7 -7 -7 -6 -6 -6 -6 -6 -6 -5 -5 -5 -5 -4 -4 -4 -4 -3 --------- Run | Scr Mat Min Mat Sto Mat Fac Low Low Zio Pro Fac Ext Cet Arc Hub Fac Upp Upp Zhi Pro Fac Arm Lab Res Total 21437 | . 732 708 1074 1043 822 882 1022 1099 1186 820 726 1023 229 609 1170 555 1694 1610 324 981 504 1362 460 802 Wait 4149 | . 76 110 182 124 70 84 14 7 33 74 241 124 8 286 598 52 510 475 . 193 101 357 81 349 Move 15220 | . 511 562 774 828 616 702 970 1055 1136 722 404 763 190 257 481 413 1140 990 286 743 317 747 306 307 Hop . | . . . . . . . . . . . . . . . . . . . . . . . . . Pick Up 162 | . 23 1 12 6 11 14 . 3 6 . 7 3 6 2 5 3 1 13 7 . 14 10 8 7 Fast Attach 107 | . 5 . 2 3 5 5 3 1 1 1 3 2 2 3 5 4 1 4 7 2 3 13 19 13 Attach 61 | . . 1 3 1 4 5 . 2 . . 3 . 1 1 . 5 1 6 2 1 8 6 3 8 Detach 32 | . 2 . . 1 1 2 1 . . . . . . 1 1 3 1 1 1 1 3 4 3 6 Swap 266 | . 11 6 19 5 10 14 6 6 3 4 11 22 4 6 12 24 10 18 5 5 11 23 5 26 Drop 234 | . 19 1 19 8 16 17 4 3 7 1 9 8 7 5 10 2 3 13 13 1 7 25 21 15 Fire 933 | . 82 26 60 63 75 38 24 13 . 18 46 23 11 37 55 29 23 41 . 35 40 111 14 69 Melee 53 | . . . . . . . . . . . 1 . . 11 . 20 4 12 3 . . . . 2 Ram . | . . . . . . . . . . . . . . . . . . . . . . . . . Kick . | . . . . . . . . . . . . . . . . . . . . . . . . . Crush 25 | . 3 1 3 4 1 1 . 2 . . 1 2 . . 3 . . 2 . . . 2 . . Escape Stasis . | . . . . . . . . . . . . . . . . . . . . . . . . . Rewire 182 | . . . . . . . . 7 . . . 76 . . . . . 35 . . . 64 . . Trap 13 | . . . . . 13 . . . . . . . . . . . . . . . . . . . Miscellaneous . | . . . . . . . . . . . . . . . . . . . . . . . . . Route ------- -11/Scrapyard -10/Materials (discovered 4 exits: *Mat x2 / [*Min x2]) -10/Mines (discovered 2 exits: *Mat x2) -9/Materials (discovered 5 exits: *Mat x3 / *Min / *Sto) -9/Storage (discovered 2 exits: *Mat / [Rec]) -8/Materials -7/Factory (discovered 2 exits: *Fac / *Low) -7/Lower Caves -7/Lower Caves (discovered 2 exits: *Fac / *Zio) -7/Zion -6/Proximity Caves -6/Factory (discovered 6 exits: Fac x4 / Low / *Ext) -6/Extension (discovered 2 exits: *Fac / *Cet) -6/Cetus (discovered 2 exits: *Fac / [*Arc]) -6/Archives (discovered 3 exits: *Fac / *Hub x2) -6/Hub_04(d) -5/Factory (discovered 3 exits: *Fac / *Upp x2) -5/Upper Caves -5/Upper Caves -5/Zhirov -4/Proximity Caves -4/Factory (discovered 3 exits: Upp x2 / *Arm) -4/Armory (discovered 2 exits: *Res / [*Lab]) -4/Lab -3/Research History --------- Turn | Location | Event 1 | -11/Scrapyard | Discovered new exit (range 0) 1 | -11/Scrapyard | Entered Materials 279 | -10/Materials | Discovered new exit (range 10) 302 | -10/Materials | Build established: Mutant 676 | -10/Materials | Repaired Lgt. Treads 718 | -10/Materials | Central database locked down 731 | -10/Materials | Discovered new exit (range 8) 980 | -10/Materials | Discovered new exit (range 14) 1082 | -10/Materials | Discovered new exit (range 16) 1536 | -10/Materials | Entered Mines 1537 | -10/Mines | Assembled infested the area 1539 | -10/Mines | Met a Derelict bent on vengeance 1569 | -10/Mines | Learned 4 Materials zone layouts 1930 | -10/Mines | Escorted by a lone wolf Derelict 2163 | -10/Mines | Discovered new exit (range 7) 2299 | -10/Mines | Discovered new exit (range 8) 2716 | -10/Mines | Deemed a non-threat by the Exiles lab entrance 3044 | -10/Mines | Entered Materials 3044 | -9/Materials | Evolved 2 slots: Propulsion x1, Weapon x1 3045 | -9/Materials | Identified exit to Mines 3045 | -9/Materials | Identified exit to Materials 3342 | -9/Materials | Build established: Tank 3446 | -9/Materials | Identified exit to Storage 3697 | -9/Materials | Discovered exit to Materials (range 16) 4176 | -9/Materials | Repaired Particle Cannon 4203 | -9/Materials | Repaired Lgt. Cannon 4279 | -9/Materials | Discovered exit to Materials (range 14) 4658 | -9/Materials | Entered Storage 4894 | -9/Storage | Discovered new exit (range 15) 5082 | -9/Storage | Repaired Lgt. Cannon 5380 | -9/Storage | Garrison activated, responded to threat 5524 | -9/Storage | Found Prototype Processor 5524 | -9/Storage | Identified Exp. Targeting Computer 5528 | -9/Storage | Found Exp. Targeting Computer 5569 | -9/Storage | Discovered exit to Materials (range 9) 5924 | -9/Storage | Build established: Mutant 6196 | -9/Storage | Entered Materials 6196 | -8/Materials | Evolved 2 slots: Utility x2 6649 | -8/Materials | Build established: Gunner 7199 | -8/Materials | Discovered new exit (range 14) 7820 | -8/Materials | Entered Factory 7820 | -7/Factory | Evolved 2 slots: Propulsion x1, Utility x1 8556 | -7/Factory | Build established: Mutant 8597 | -7/Factory | Repaired Adv. Treads 8616 | -7/Factory | Cargo convoy interrupted 8700 | -7/Factory | Discovered new exit (range 5) 8726 | -7/Factory | Identified exit to Factory 8859 | -7/Factory | Discovered new exit (range 10) 9113 | -7/Factory | Entered Lower Caves 9167 | -7/Lower Caves | Build established: Tank 9188 | -7/Lower Caves | Learned 8 Factory zone layouts 9381 | -7/Lower Caves | Attracted the attention of an 0b10 checkpoint 9684 | -7/Lower Caves | Encountered a Warlord checkpoint 10365 | -7/Lower Caves | Spotted B-75 Beast 10478 | -7/Lower Caves | Discovered new exit (range 10) 10642 | -7/Lower Caves | Entered another Lower Caves area 10648 | -7/Lower Caves | Discovered exit to Factory (range 6) 10787 | -7/Lower Caves | Identified exit to Zion 10951 | -7/Lower Caves | Learned Factory emergency access door positions 11081 | -7/Lower Caves | Attracted the attention of an 0b10 outpost 11111 | -7/Lower Caves | Destroyed 8 combat bots 11313 | -7/Lower Caves | Build established: Derelict-Tank 11805 | -7/Lower Caves | Learned Armory trap positions 11805 | -7/Lower Caves | Learned Research security intel 11940 | -7/Lower Caves | Build established: Derelict-Mutant 12317 | -7/Lower Caves | Entered Zion 12317 | -7/Zion | Accompanied by 2 allies 12345 | -7/Zion | Found CR-A16's Pointy Stick 12529 | -7/Zion | Discovered new exit (range 15) 12865 | -7/Zion | Given the Hacking Drone Bay 12865 | -7/Zion | Found Prototype Device 12865 | -7/Zion | Identified Hacking Drone Bay 13176 | -7/Zion | Build established: Mutant 13281 | -7/Zion | Found Prototype Launcher 13291 | -7/Zion | Identified Rocket Array 14091 | -7/Zion | Entered Proximity Caves 14091 | -6/Proximity Caves | Accompanied by 2 allies 15167 | -6/Proximity Caves | Build established: Tank 15191 | -6/Proximity Caves | Attacked by a faux Warlord 15300 | -6/Proximity Caves | Learned Factory emergency access door positions 15301 | -6/Proximity Caves | Discovered exit to Factory (range 11) 15313 | -6/Proximity Caves | Attracted the attention of an 0b10 checkpoint 15316 | -6/Proximity Caves | Entered Factory 15316 | -6/Factory | Evolved 2 slots: Propulsion x1, Utility x1 15317 | -6/Factory | Identified exit to Extension 15317 | -6/Factory | Identified exit to Factory 15317 | -6/Factory | Identified exit to Lower Caves 16344 | -6/Factory | Entered Extension 16380 | -6/Extension | Build established: Scavenger-Mutant 16420 | -6/Extension | Rescued a captive Derelict 16600 | -6/Extension | Repaired Adv. Treads 16713 | -6/Extension | Rescued A7 16776 | -6/Extension | Rescued a captive Derelict 16798 | -6/Extension | Rescued a captive Derelict 16799 | -6/Extension | Rescued a captive Derelict 17144 | -6/Extension | Build established: Scavenger-Gunner 17171 | -6/Extension | Spotted B-75 Beast 17188 | -6/Extension | Allies destroyed B-75 Beast 17190 | -6/Extension | Spotted B-75 Beast 17211 | -6/Extension | Destroyed B-75 Beast 17267 | -6/Extension | Rescued a captive Derelict 17729 | -6/Extension | Rescued a captive Derelict 17729 | -6/Extension | Rescued a captive Derelict 17778 | -6/Extension | Discovered exit to Factory (range 10) 17780 | -6/Extension | Discovered new exit (range 6) 17827 | -6/Extension | Entered Cetus 17827 | -6/Cetus | Accompanied by 9 allies (A7) 17832 | -6/Cetus | Acquired a Cetus Manufacturing Module code from A7 17848 | -6/Cetus | Spotted Cetus Guard 17848 | -6/Cetus | Spotted Cetus Guard 17856 | -6/Cetus | Spotted Cetus Guard 17856 | -6/Cetus | Spotted Cetus Guard 17858 | -6/Cetus | Allies destroyed Cetus Guard 17862 | -6/Cetus | Destroyed Cetus Guard 17871 | -6/Cetus | Destroyed Cetus Guard 17872 | -6/Cetus | Allies destroyed Cetus Guard 17980 | -6/Cetus | Started Cetus Manufacturing Module 18004 | -6/Cetus | Discovered new exit (range 15) 18005 | -6/Cetus | Manufactured an Enhanced Grunt 18030 | -6/Cetus | Manufactured an Enhanced Grunt 18042 | -6/Cetus | Spotted Cetus Guard 18042 | -6/Cetus | Spotted Cetus Guard 18042 | -6/Cetus | Allies destroyed Cetus Guard 18045 | -6/Cetus | Spotted Cetus Guard 18046 | -6/Cetus | Spotted Cetus Guard 18049 | -6/Cetus | Allies destroyed Cetus Guard 18055 | -6/Cetus | Manufactured an Enhanced Grunt 18059 | -6/Cetus | Allies destroyed Cetus Guard 18059 | -6/Cetus | Destroyed Cetus Guard 18069 | -6/Cetus | Discovered exit to Factory (range 16) 18079 | -6/Cetus | Met Revision 17 18080 | -6/Cetus | Manufactured an Enhanced Grunt 18083 | -6/Cetus | Cetus Manufacturing Module disabled 18183 | -6/Cetus | Extracted ID and sensor layout for unrecognized location from A7's data core 18223 | -6/Cetus | Entered Archives 18223 | -6/Archives | Accompanied by 6 allies 18404 | -6/Archives | Found Prototype Device 18404 | -6/Archives | Identified Exp. Thermal Shield 18438 | -6/Archives | Discovered exit to Factory (range 14) 18625 | -6/Archives | Discovered new exit (range 15) 18707 | -6/Archives | Build established: Scavenger-Mutant 19117 | -6/Archives | Build established: Scavenger-Gunner 19127 | -6/Archives | Discovered new exit (range 16) 19505 | -6/Archives | Entered Hub_04(d) 19505 | -6/Hub_04(d) | Accompanied by 3 allies 19542 | -6/Hub_04(d) | Garrison activated, responded to threat 19629 | -6/Hub_04(d) | Discovered exit to Factory (range 8) 19969 | -6/Hub_04(d) | Build established: Gunner 20585 | -6/Hub_04(d) | Build established: Tank 20808 | -6/Hub_04(d) | Network Hub disabled 20873 | -6/Hub_04(d) | Spotted Lightning 20889 | -6/Hub_04(d) | Spotted Lightning 20901 | -6/Hub_04(d) | Spotted Lightning 20925 | -6/Hub_04(d) | Destroyed Lightning 20960 | -6/Hub_04(d) | Destroyed Lightning 20975 | -6/Hub_04(d) | Destroyed Lightning 20993 | -6/Hub_04(d) | Found Prototype Device 20993 | -6/Hub_04(d) | Identified EM Dispersion Field 21084 | -6/Hub_04(d) | Entered Factory 21084 | -5/Factory | Evolved 2 slots: Power x1, Utility x1 21157 | -5/Factory | Repaired Imp. Heavy Armor Plating 21398 | -5/Factory | Build established: Scavenger-Gunner 21450 | -5/Factory | Identified exit to Upper Caves 21546 | -5/Factory | Garrison activated, responded to threat 21580 | -5/Factory | Discovered new exit (range 15) 21588 | -5/Factory | Destroyed 7 combat bots 21640 | -5/Factory | Spotted B-75 Beast 21703 | -5/Factory | Destroyed B-75 Beast 21843 | -5/Factory | Repaired Centrium Heavy Treads 22012 | -5/Factory | Entered Upper Caves 22013 | -5/Upper Caves | Encountered a Warlord checkpoint 22031 | -5/Upper Caves | Build established: Scavenger-Tank 22876 | -5/Upper Caves | Spotted B-75 Beast 22895 | -5/Upper Caves | Destroyed B-75 Beast 22954 | -5/Upper Caves | Discovered new exit (range 5) 23778 | -5/Upper Caves | Attracted the attention of an 0b10 checkpoint 23892 | -5/Upper Caves | Learned Factory trap positions 23894 | -5/Upper Caves | Learned Factory machine intel 24349 | -5/Upper Caves | Build established: Scavenger-Mutant 24449 | -5/Upper Caves | Entered another Upper Caves area 24454 | -5/Upper Caves | Spotted B-75 Beast 24628 | -5/Upper Caves | Attracted the attention of an 0b10 checkpoint 24916 | -5/Upper Caves | Build established: Scavenger-Tank 25243 | -5/Upper Caves | Build established: Scavenger-Mutant 25395 | -5/Upper Caves | Revealed the true nature of CR-A16's Pointy Stick 25398 | -5/Upper Caves | Destroyed B-75 Beast 25800 | -5/Upper Caves | Build established: Scavenger-Tank 25893 | -5/Upper Caves | Discovered new exit (range 5) 25910 | -5/Upper Caves | Learned location of Warlord (-4) 25934 | -5/Upper Caves | Attracted the attention of an 0b10 outpost 26753 | -5/Upper Caves | Entered Zhirov 26753 | -5/Zhirov | Discovered new exit (range 3) 26782 | -5/Zhirov | Met Zhirov 26811 | -5/Zhirov | Learned location of Quarantine (-3) 26811 | -5/Zhirov | Learned location of Testing (-2) 26811 | -5/Zhirov | Learned location of Command (-1) 26825 | -5/Zhirov | Zhirov requested help retrieving the SGEMP Prototype 26861 | -5/Zhirov | Found Alien Artifact 26861 | -5/Zhirov | Identified Integrated Dissipator 26861 | -5/Zhirov | Installed Integrated Dissipator, increased core heat dissipation (+20) 26998 | -5/Zhirov | Found Alien Artifact 27201 | -5/Zhirov | Build established: Scavenger-Mutant 27253 | -5/Zhirov | Entered Proximity Caves 27485 | -4/Proximity Caves | Received a Behemoth hack from an annoying Tinkerer 27574 | -4/Proximity Caves | Build established: Scavenger-Tank 27956 | -4/Proximity Caves | Discovered new exit (range 15) 28753 | -4/Proximity Caves | Entered Factory 28753 | -4/Factory | Evolved 2 slots: Utility x1, Weapon x1 28754 | -4/Factory | Identified exit to Armory 28755 | -4/Factory | Loaded intel: 106 trap records 28756 | -4/Factory | Loaded intel: 264 machine locations 29013 | -4/Factory | Repaired Centrium Heavy Treads 29017 | -4/Factory | Garrison activated, responded to threat 29192 | -4/Factory | Identified exit to Upper Caves 29545 | -4/Factory | Entered Armory 29546 | -4/Armory | Loaded intel: 50 trap records 29945 | -4/Armory | Destroyed 10 combat bots 30317 | -4/Armory | Repaired Broken Centrium Heavy Treads? 30373 | -4/Armory | Build established: Scavenger-Skirmisher 30522 | -4/Armory | Repaired Broken Centrium Heavy Treads 30988 | -4/Armory | Discovered new exit (range 8) 31152 | -4/Armory | Build established: Scavenger-Tank 31248 | -4/Armory | Identified Transdimensional Reconstructor 31248 | -4/Armory | Warped through subspace to slip node 31248 | -4/Armory | Discovered new exit (range 1) 31581 | -4/Armory | First assault squad dispatched 31583 | -4/Armory | Found Fusion Bomb Launcher 31599 | -4/Armory | Entered Lab 31599 | -4/Lab | Discovered new exit (range 9) 31617 | -4/Lab | Hidden lab's door opened automatically 31617 | -4/Lab | Sensor layout match revealed 31618 | -4/Lab | Gained access to the hidden lab's interior 31715 | -4/Lab | Detected by scanners 31724 | -4/Lab | Confronted by A5 31758 | -4/Lab | Destroyed A5 31776 | -4/Lab | Found Prototype Protection 31776 | -4/Lab | Identified Med. Regenerative Plating 31811 | -4/Lab | Found Integrated Dissipator 31811 | -4/Lab | Installed Integrated Dissipator, increased core heat dissipation (+20) 31822 | -4/Lab | Found Alien Artifact 31822 | -4/Lab | Identified Core Expander 31822 | -4/Lab | Installed Core Expander, added new Power slot 31851 | -4/Lab | Found Med. Regenerative Plating 31857 | -4/Lab | Found Prototype Energy Gun 31857 | -4/Lab | Identified Hyp. EM Gauss Rifle 31864 | -4/Lab | Found Prototype Energy Cannon 31864 | -4/Lab | Identified Warp Cannon 31946 | -4/Lab | Found Prototype Hackware 31995 | -4/Lab | Found Prototype Hackware 31995 | -4/Lab | Identified Quantum Router 32071 | -4/Lab | Identified Exp. Hacking Suite 32076 | -4/Lab | Found Prototype Hackware 32076 | -4/Lab | Identified Exp. System Shield 32110 | -4/Lab | Found Transdimensional Reconstructor 32122 | -4/Lab | Found Alien Artifact 32144 | -4/Lab | Build established: Scavenger-Mutant 32274 | -4/Lab | Entered Research 32274 | -3/Research | Evolved 2 slots: Propulsion x1, Utility x1 32304 | -3/Research | Identified Core Reset Matrix 32425 | -3/Research | Used Core Reset Matrix 32454 | -3/Research | Spotted B-86 Titan 32479 | -3/Research | Destroyed B-86 Titan 32518 | -3/Research | Found Unknown Device 32518 | -3/Research | Identified Antimissile System 32619 | -3/Research | Spotted B-86 Titan 32644 | -3/Research | Destroyed B-86 Titan 32703 | -3/Research | Destroyed 7 combat bots 32888 | -3/Research | Lost 3 parts (1p2u) 33274 | -3/Research | First assault squad dispatched 33375 | -3/Research | Intercept squad dispatched 33401 | -3/Research | Spotted Tracker 33410 | -3/Research | Spotted Tracker 33420 | -3/Research | Spotted Combat Programmer 33422 | -3/Research | Self-destructed Last Messages --------------- 33404_ G-67 Veteran destroyed. 33408_ G-73 Enforcer destroyed. 33408_ Slug penetrates G-67 Veteran. 33408_ Med. Regenerative Plating blown off. 33408_ Exp. Heat Sink blown off. 33408_ E-15 Imp destroyed. 33411_ G-67 Veteran destroyed. Tracker: "THREAT CONFIRMED. DEPLOY COMBAT PROGRAMMER." 33415_ Slug penetrates Tracker. 33415_ Quantum Router destroyed. 33416_ Ended siege mode. 33418_ R-10 Processor collects Unknown Device. 33418_ Slug penetrates Tracker. 33418_ R-10 Processor collects Unknown Leg. 33420_ K-01 Serf collects debris. 33421_ Penetrated by EMDS Slug. 33421_ R-10 Processor collects Unknown Device. 33421_ Critical hit (Destroy). 33421_ Centrium Heavy Treads destroyed. 33421_ Lgt. Particle Reactor destroyed. Map ----- +----------------------------------------------------+ | ??????????????????????????????????????# ## | | ???????????????????#??????#???????????# """ #? | | ??????????????????????????????????????# """ #? | | ???????????????????????????????##?#???# """ #? | | ??????????????????????#????????##?????? #? | | ????????????????????????#????????#??#?#?? #? | | ??????????????????????????????????????? ??? ?# | | ????????????????#############################+#### | | ????????????????# ^ | | ????????????????# ^ | | ????????????????# | | ????????????????+ """ ^ | | ????????????????# """ ###+################## | | ????????????????# """ # #??????????# | | ????????????????# # * #??????#???? | | ????????????????# # #??????#???? | | ????????????????# # !!! #??#?#?????? | | ????????? ??????# + !!! #????????#?" | | ????????????????# ### # !!! #??????????? | | ??????????????? # ####p# # #?????????#? | | ????????????????# ?# # # #???????#??? | | ????????????????# ??# k*# ###########?#?#??#???? | | ????????????????# ???# %!#R#????????????????????? | | ?????????? ?????#? ??# R%#%####?#???????????????? | | ?????????????????????#= %%ss=% #???????#?????????? | | ????????????????#????# ![@;###+#?????#?#?????????? | | ?????????????????????# [[=##???????????????#?????? | | ?????????????????????# !!#?????????????#????????? | | ?????????????????????# #??????????????????????? | | ?????????????????????######?# ?? ????????????#???? | | ?????????????????????????????????????????????????? | | ???????????????????? ???#????????????????????????? | | ?????????????????????????????????????????????????? | | ???????????????????????????????? ????????????????? | | ???????????????????????????????????????????#?????? | | ?????????????????????????????????????????????????? | | ???????????????#???????????????????????#?????????? | | ?????????????????????????????????????????????????? | | ?????????????????????????????????????????????????? | | ?????????????????????????????????????????????????? | | ???????????? ????????????????????????????????????? | | ?????????????????????????????????????????????????? | | ?????????????????????????????????????????????????? | | ?????????????????????????????????????????????????? | | ?????????????????????????????????????????????????? | | ?????????????????????????????????????????????????? | | ?????????????????????????????????????????????????? | | ?????????????????????????????????????????????????? | | ?????????????????????????????????????????????????? | | ?????????????????????????????????????????????????? | +----------------------------------------------------+ Best States ------------- Heat Dissipation 164 Coolant Potential 100 Energy Generation 83 Energy Capacity 1150 Matter Stores 300 Matter Capacity 300 Sight Range 16 Terrain Scan Range 20 Terrain Scan Density 10 Jamming Range 14 Power Amplification 30 Armor Coverage 1650 Resistance: EM 75 Weapon Shielding 90 Point Defense Rating 240 Phase Shifting 10 Evasion (%) 55 Targeting Accuracy 20 Recoil Reduction 6 Matter Filtering 50 Particle Charging 20 Offensive Hacking 16 Defensive Hacking 25 Item Schematics ----------------- None Robot Schematics ------------------ None Fabricated ------------ Nothing Alien Tech Used ----------------- Integrated Dissipator Transdimensional Reconstructor Core Expander Core Reset Matrix Achievements -------------- None Challenges ------------ None Game ------ Seed ImpulseMakeshiftCharger Manual? 0 Play Time 04:02:16 Cumulative 405.0 hours Start 2021.06.12 @ 15:52:58 End 2021.06.12 @ 22:42:38 Sessions 1 Manual Loads 0 Difficulty Rogue Special Mode None Game No. 140 Rogue 139 Adventurer 1 Explorer 0 Win Type - Total 24 Types 7/4/4/1/1/0/7/0/0 Lore% 94 Gallery% 93 Achievement% 79 Wizard Run 0 Options --------- ASCII 1 Keyboard 1 Movement Numpad Keybinds 0 Fullscreen 0 Font 18/Smallcaps Map View 76x50 Tactical HUD 1 Map Filters NONE Filters NONE Steam 1 RUN: 19c378b4-8743-4214-932a-4655ed02622c